[Event "German Bundesliga 2024-25"]
[Site "Germany"]
[Date "2024.12.01"]
[Round "4.1"]
[White "Fedoseev, Vladimir"]
[Black "Saric, Ivan"]
[Result "1-0"]
[Annotator "TA"]
[ECO "D41"]
[WhiteElo "2712"]
[BlackElo "2668"]
[PlyCount "119"]
[EventDate "2024.09.27"]
[EventType "team-tourn"]
[EventCountry "GER"]
[SourceTitle "playchess.com"]
[Source "ChessBase"]
[SourceQuality "1"]
[WhiteTeam "Bayern Muenchen"]
[BlackTeam "Kirchweyhe"]
[TimeControl "40/5400+30:1800+30"]

{[%evp 29,119,18,32,37,39,0,0,0,0,0,0,0,0,0,0,0,0,0,0,0,0,0,0,0,0,0,0,0,0,0,0,0,0,0,0,0,0,0,0,0,0,0,0,0,0,0,0,0,0,0,0,0,0,0,0,0,0,0,0,0,0,0,0,0,0,0,29965,29967,29966,29968,29969,29970,29968,29971,29970,29973,29973,29974,29971,29975,29975,29976,29977,29978,29978,29979,29982,29979,29979,29980,29980,29980]} 1. d4 {[%emt 0:00:16]} Nf6 {[%emt 0:00:13]} 2. c4 {[%emt 0:00:18]} e6 {[%emt 0:00:16]} 3. Nf3 {[%emt 0:04:38]} d5 {[%emt 0:00:10]} 4. Nc3 {[%emt 0:00:06]} c5 {[%emt 0:02:26]} 5. cxd5 {[%emt 0:00:40]} Nxd5 {[%emt 0:01:25]} 6. e4 {[%emt 0:03:11]} Nxc3 {[%emt 0:00:05]} 7. bxc3 {[%emt 0:00:05]} cxd4 {[%emt 0:00:04]} 8. cxd4 {[%emt 0:00:07]} Bb4+ {[%emt 0:00:09]} 9. Bd2 {[%emt 0:00:05]} Bxd2+ {[%emt 0:00:04]} 10. Qxd2 {[%emt 0:00:07]} O-O {[%emt 0:00:05]} 11. Rc1 {[%emt 0:02:22]} Nc6 {[%emt 0:10:47]} 12. Be2 {[%emt 0:03:01]} Qd6 {[%emt 0:05:19]} 13. O-O {[%emt 0:00:56]} Bd7 {[%emt 0:06:36] D41: Queen's Gambit Declined: Semi-Tarrasch with 5 cxd5.} 14. e5 $146 {[%emt 0:07:20]} ({Predecessor:} 14. Qe3 Rac8 15. h4 Rfd8 16. h5 h6 17. Rfd1 Nb4 18. Qa3 Rxc1 19. Rxc1 Bc6 20. Rc4 Na6 21. Qxd6 Rxd6 {1-0 Valles Moreno,I (2381)-Moreno Ibanez,M (2291) Madrid-chT Honor 2122 2021 (6.2)}) 14... Qb4 {[%emt 0:04:20]} 15. Qd3 {[%emt 0:06:17]} h6 {[%emt 0:08:51]} 16. Rb1 {[%emt 0:04:22]} Qa4 {[%emt 0:03:20]} 17. Rxb7 {[%emt 0:00:37]} Nb4 $1 {[%emt 0:01:18]} 18. Qd1 {[%emt 0:16:24]} a5 {[%emt 0:05:41]} 19. a3 {[%emt 0:03:21]} Nd5 {[%emt 0:01:39]} 20. Qxa4 {[%emt 0:04:35]} Bxa4 {[%emt 0:00:39]} 21. Ra1 {[%emt 0:11:14]} Rfd8 {[%emt 0:13:02]} 22. Rb2 {[%emt 0:02:50]} Nf4 {[%emt 0:04:45]} 23. Bd1 {[%emt 0:05:55]} Bxd1 {[%emt 0:02:24]} 24. Rxd1 {[%emt 0:00:01]} Rac8 {[%emt 0:00:12]} 25. g3 {[%emt 0:02:37]} Rc3 {[%emt 0:01:39]} 26. Nd2 {[%emt 0:00:04]} Nd3 {[%emt 0:07:31]} 27. Rb3 {[%emt 0:03:00]} Rc1 {[%emt 0:02:20]} 28. Rxc1 {[%emt 0:01:53]} Nxc1 {[%emt 0:00:05]} 29. Rb1 {[%emt 0:00:08]} Rxd4 {[%emt 0:04:38]} 30. Rxc1 {[%emt 0:00:12]} Rxd2 {[%emt 0:00:04]} 31. Rc5 {[%emt 0:00:16]} a4 {[%emt 0:00:48]} 32. Rc4 {[%emt 0:00:35]} Re2 {[%emt 0:00:23]} 33. f4 {[%emt 0:02:26]} g5 {[%emt 0:00:35]} 34. Rxa4 {[%emt 0:00:40]} gxf4 {[%emt 0:06:53]} 35. Rxf4 {[%emt 0:01:24]} Rxe5 {[%emt 0:00:05]} 36. a4 {[%emt 0:00:07]} f5 {[%emt 0:01:07]} 37. Kf2 {[%emt 0:01:03]} Kf7 {[%emt 0:00:37]} 38. g4 {[%emt 0:04:18]} Rc5 {[%emt 0:00:45]} 39. gxf5 {[%emt 0:00:33]} exf5 {[%emt 0:00:04]} 40. Ke3 {[%emt 0:00:16]} Kf6 {[%emt 0:02:56]} 41. Rb4 {[%emt 0:32:22]} Rc2 {[%emt 0:32:06]} 42. h4 {[%emt 0:01:45]} Rh2 {[%emt 0:00:00]} 43. a5 {[%emt 0:00:00]} Rh3+ {[%emt 0:00:00]} 44. Kd4 {[%emt 0:00:00]} Rxh4+ {[%emt 0:00:00]} 45. Kc5 $1 {[%emt 0:00:00]} Rh1 {[%emt 0:00:00]} ({Stronger than} 45... Rxb4 46. Kxb4 h5 47. a6 h4 48. a7 h3 49. a8=Q (49. a8=B f4 $11) 49... h2 50. Qh8+ (50. Qh1 Kg5 51. Qxh2 Kg4 52. Kc4 f4 53. Qg2+ Kf5 54. Kd5 Kf6) 50... Kg6 51. Qxh2) 46. a6 {[%emt 0:00:00]} Ra1 {[%emt 0:00:00]} 47. Kb5 {[%emt 0:00:00]} Kg5 $2 {[%emt 0:00:00][%mdl 8192] [#]} (47... h5 $11) 48. Ra4 $1 {[%emt 0:00:00]} Rb1+ {[%emt 0:00:00] [#]} 49. Kc6 $1 {[%emt 0:00:00]} Rc1+ {[%emt 0:00:00]} 50. Kd7 {[%emt 0:00:00]} Rd1+ {[%emt 0:00:00]} 51. Ke7 {[%emt 0:00:00]} Rc1 {[%emt 0:00:00]} 52. a7 {[%emt 0:00:00]} Rc8 {[%emt 0:00:00]} 53. a8=Q {[%emt 0:00:00]} Rxa8 {[%emt 0:00:00]} 54. Rxa8 {[%emt 0:00:00]} h5 {[%emt 0:00:00]} 55. Ke6 {[%emt 0:00:00]} h4 {[%emt 0:00:11]} 56. Ke5 {[%emt 0:00:00]} Kg4 {[%emt 0:00:14]} 57. Kd4 {[%emt 0:00:00]} f4 {[%emt 0:05:24]} 58. Kd3 {[%emt 0:00:00]} h3 {[%emt 0:06:27]} 59. Ke2 {[%emt 0:00:00]} h2 {[%emt 0:00:42]} 60. Rh8 {[%emt 0:00:00]} 1-0

[Event "German Bundesliga 2024-25"]
[Site "Germany"]
[Date "2024.12.01"]
[Round "4.1"]
[White "Warmerdam, Max"]
[Black "Svane, Frederik"]
[Result "1-0"]
[Annotator "TA"]
[ECO "C79"]
[WhiteElo "2653"]
[BlackElo "2654"]
[PlyCount "81"]
[EventDate "2024.09.27"]
[EventType "team-tourn"]
[EventCountry "GER"]
[SourceTitle "playchess.com"]
[Source "ChessBase"]
[SourceQuality "1"]
[WhiteTeam "SG Solingen"]
[BlackTeam "Hamburg"]
[TimeControl "40/5400+30:1800+30"]

{[%evp 15,81,37,39,27,35,27,51,17,34,32,33,27,16,12,37,27,40,34,44,26,56,33,36,27,53,50,45,45,51,48,63,62,59,72,72,55,58,68,59,26,41,8,71,43,38,43,99,100,172,188,261,192,503,502,476,457,526,525,518,355,581,602,608,593,537,0,5289,2756]} 1. e4 {[%emt 0:00:04]} e5 {[%emt 0:00:09]} 2. Nf3 {[%emt 0:00:08]} Nc6 {[%emt 0:00:04]} 3. Bb5 {[%emt 0:00:10]} a6 {[%emt 0:00:45]} 4. Ba4 {[%emt 0:00:05]} Nf6 {[%emt 0:00:09]} 5. O-O {[%emt 0:00:09]} d6 {[%emt 0:01:32]} 6. c3 {[%emt 0:00:58]} Bd7 {[%emt 0:01:24]} 7. d4 {[%emt 0:00:35]} g6 {[%emt 0:00:46]} 8. Re1 {[%emt 0:00:32]} Bg7 {[%emt 0:00:23]} 9. h3 {[%emt 0:00:07]} O-O {[%emt 0:00:17]} 10. Bc2 {[%emt 0:00:06]} a5 {[%emt 0:00:17]} 11. Nbd2 {[%emt 0:03:34] White is slightly better.} a4 {[%emt 0:00:30]} 12. Nf1 {[%emt 0:00:23]} Nh5 {[%emt 0:00:33]} 13. Bg5 {[%emt 0:10:04]} Qc8 {[%emt 0:14:19]} 14. Rc1 {[%emt 0:08:57]} Kh8 {[%emt 0:12:52]} 15. N1h2 {[%emt 0:15:14]} Ra5 {[%emt 0:25:53]} 16. d5 {[%emt 0:14:58]} Nd8 {[%emt 0:04:03]} 17. c4 {[%emt 0:00:16]} b6 {[%emt 0:01:25]} 18. b4 {[%emt 0:10:41]} axb3 {[%emt 0:00:05]} 19. axb3 {[%emt 0:00:02]} Nb7 {[%emt 0:00:06]} 20. b4 {[%emt 0:01:27]} Ra8 {[%emt 0:00:05]} 21. Be3 {[%emt 0:01:28]} Qe8 {[%emt 0:07:50]} 22. Ra1 {[%emt 0:03:01]} Rxa1 {[%emt 0:04:20]} 23. Qxa1 {[%emt 0:00:25]} f5 {[%emt 0:01:34]} 24. Qa7 {[%emt 0:01:12]} Qc8 {[%emt 0:03:28]} 25. c5 {[%emt 0:08:05] White is much more active.} dxc5 {[%emt 0:00:35]} 26. bxc5 {[%emt 0:00:20]} bxc5 {[%emt 0:01:50]} 27. Bxc5 {[%emt 0:01:53]} Nxc5 {[%emt 0:04:36]} 28. Qxc5 {[%emt 0:00:04]} Re8 {[%emt 0:00:28]} (28... Nf4 $11) 29. Nd2 {[%emt 0:02:05]} Nf4 {[%emt 0:02:33]} 30. Nhf3 $36 {[%emt 0:00:54][%mdl 2048] Black is under pressure.} c6 {[%emt 0:08:42]} (30... fxe4 $14 31. Bxe4 (31. Nxe4 Rf8 $14) 31... Bf5) 31. d6 $16 {[%emt 0:04:41] Hoping for exf5.} Ne6 {[%emt 0:00:02]} (31... Qa6 $16 32. h4 Nd3 33. Bxd3 Qxd3) 32. Qa7 $18 {[%emt 0:00:11] Rb1 would now be deadly.} fxe4 {[%emt 0:03:40]} (32... Nf8 {was necessary.} 33. Nc4 Qa8 34. Qxa8 Rxa8 35. exf5 (35. Nfxe5 Be6 $18) (35. Ncxe5 fxe4 36. Nxd7 Nxd7 $16) 35... e4) 33. Bxe4 {[%emt 0:01:11] [#] Black must now prevent Rb1.} Nd4 $2 {[%emt 0:01:08]} (33... Nf8 {is more resistant.} 34. Nc4 Qb8) 34. Nxd4 {[%emt 0:01:00]} exd4 {[%emt 0:00:01]} 35. Rb1 {[%emt 0:00:14][%cal Be1b1,Bb1b7,Bb7e7][%mdl 32]} Be6 {[%emt 0:01:04]} 36. Rb7 {[%emt 0:03:08]} Rg8 {[%emt 0:00:01]} 37. Nf3 {[%emt 0:03:43][%cal Ob7e7] [#] aiming for Re7!} Qf8 {[%emt 0:00:59]} (37... d3 {might work better.} 38. Re7 (38. Bxd3 Qd8 $18) 38... Bb3) 38. Re7 {[%emt 0:01:25]} ({Worse is} 38. Nxd4 Qxd6 39. Nxe6 (39. Nxc6 Qd2 $11) 39... Qxe6 $11) 38... Bb3 {[%emt 0:00:01]} 39. Qb7 {[%emt 0:01:44]} Ba2 {[%emt 0:00:59]} 40. Qa7 $2 {[%emt 0:01:20]} ({White should play} 40. Bxc6 $18 {And now Bd5 would win.} Qd8 41. Bd5 Bxd5 42. Qxd5) 40... Bd5 $2 {[%emt 0:00:30][%mdl 8192]} (40... Bb3 $11 41. Nxd4 (41. Bxc6 d3 $18) 41... Qf4 42. Nxb3 Qxd6) 41. Bxd5 {[%emt 0:32:21] Weighted Error Value: White=0.34/Black=0.40.  Loses game:     	---       	Black=1      Mistake:       	---       	Black=6      Inaccurate:     	White=5     	Black=2      OK:         	White=10    	Black=8      Best:        	White=5     	---} 1-0

[Event "German Bundesliga 2024-25"]
[Site "Germany"]
[Date "2024.12.01"]
[Round "4.1"]
[White "Kollars, Dmitrij"]
[Black "Kazakouski, Valery"]
[Result "1/2-1/2"]
[Annotator "TA"]
[ECO "C54"]
[WhiteElo "2641"]
[BlackElo "2567"]
[PlyCount "71"]
[EventDate "2024.09.27"]
[EventType "team-tourn"]
[EventCountry "GER"]
[SourceTitle "playchess.com"]
[Source "ChessBase"]
[SourceQuality "1"]
[WhiteTeam "Deizisau"]
[BlackTeam "Bad Mergentheim"]
[TimeControl "40/5400+30:1800+30"]

{[%evp 17,71,0,0,8,11,-13,35,15,15,6,69,46,58,66,82,68,68,75,66,73,81,34,50,58,47,51,64,35,102,21,35,0,65,0,0,0,0,0,47,54,50,46,50,46,53,47,56,40,54,0,0,0,0,0,0,0]} 1. e4 {[%emt 0:00:07]} e5 {[%emt 0:00:11]} 2. Nf3 {[%emt 0:00:04]} Nc6 {[%emt 0:00:08]} 3. Bc4 {[%emt 0:00:24]} Bc5 {[%emt 0:00:42]} 4. c3 {[%emt 0:00:25]} Nf6 {[%emt 0:00:09]} 5. d4 {[%emt 0:00:14]} exd4 {[%emt 0:00:11]} 6. e5 {[%emt 0:00:20]} d5 {[%emt 0:00:09]} 7. Bb5 {[%emt 0:00:28]} Ne4 {[%emt 0:00:08]} 8. cxd4 {[%emt 0:00:05]} Bb6 {[%emt 0:00:08]} 9. Nc3 {[%emt 0:00:31]} O-O {[%emt 0:00:09]} 10. Be3 {[%emt 0:00:13]} f5 {[%emt 0:01:21]} 11. O-O {[%emt 0:04:49]} Ne7 {[%emt 0:03:14]} (11... f4 $11 12. Bc1 Bg4 13. Bxc6 bxc6) 12. Ne2 {[%emt 0:01:52] White is slightly better.} Ng6 {[%emt 0:04:25]} 13. g3 {[%emt 0:09:27]} Bd7 {[%emt 0:13:10]} ({Better is} 13... f4 $11 14. Nxf4 (14. Bxf4 Bg4 $17) 14... Nxf4 15. Bxf4 Bg4) 14. Bd3 {[%emt 0:06:42]} Qe8 {[%emt 0:04:07]} 15. Ne1 {[%emt 0:12:04]} h6 {[%emt 0:08:46]} 16. Ng2 {[%emt 0:01:55]} c5 {[%emt 0:09:21]} 17. dxc5 {[%emt 0:05:04]} Nxc5 {[%emt 0:00:57]} 18. f4 {[%emt 0:00:13]} Rd8 {[%emt 0:07:53]} 19. Nd4 {[%emt 0:03:36]} (19. Bc2 $16) 19... Nxd3 {[%emt 0:01:14]} 20. Qxd3 {[%emt 0:00:26]} Bxd4 {[%emt 0:01:58]} 21. Qxd4 {[%emt 0:00:27]} (21. Bxd4 Bb5 22. Qb3 Bxf1 23. Rxf1 b6 $15) 21... Bb5 {[%emt 0:01:40]} 22. Rfc1 {[%emt 0:09:38][%cal Oa2a4]} Ne7 {[%emt 0:05:00]} (22... Rf7 $1 $14) 23. Rc7 {[%emt 0:04:53] Black is weak on the dark squares} ({Much worse is} 23. Qxa7 $6 d4 24. Bf2 d3 $11) (23. a4 $16 Nc6 24. Qd1) 23... Nc6 {[%emt 0:07:17]} 24. Qc5 {[%emt 0:01:36]} (24. Qd1 {simplifies} Rf7 25. Rxf7 Qxf7 26. Bd4) 24... Be2 {[%emt 0:03:45]} (24... Bd3 $11) 25. Bd4 {[%emt 0:03:24] White is much more active.} ({White should play} 25. Rxb7 $14 d4 26. Bd2) 25... Rf7 $11 {[%emt 0:03:52]} 26. Rxf7 {[%emt 0:00:16]} Qxf7 {[%emt 0:00:43]} 27. Qc3 {[%emt 0:04:39] Dodges Bd3} Qe6 {[%emt 0:05:16]} (27... Qh5 $11 {is more appropriate.}) 28. Kf2 $14 {[%emt 0:03:28]} Ba6 {[%emt 0:02:09]} 29. Rc1 {[%emt 0:04:59]} Rc8 {[%emt 0:03:03]} 30. Ne3 {[%emt 0:02:30]} b6 {[%emt 0:00:59] [#] Threatens to win with ...Nxd4.} 31. Qd2 {[%emt 0:00:58]} Kh7 {[%emt 0:02:20]} 32. h4 {[%emt 0:06:15][%cal Bh2h4,Bh4h5][%mdl 32]} Qg6 {[%emt 0:01:02]} 33. Qd1 {[%emt 0:06:16]} ({Of course not} 33. Nxd5 Qe6 34. Be3 Nxe5 35. fxe5 Rxc1 $15) ({White should try} 33. Ra1 $14) 33... Nxd4 $11 {[%emt 0:05:32] The position is equal.} 34. h5 {[%emt 0:00:46] Really sharp!} (34. Rxc8 Ne2 35. Nf1 Nxg3) 34... Qf7 {[%emt 0:01:22]} 35. Rxc8 {[%emt 0:00:06]} Bxc8 {[%emt 0:00:08]} 36. Qxd4 {[%emt 0:00:22] Weighted Error Value: White=0.20 (precise) /Black=0.17 (very precise) .  Mistake:       	White=4     	Black=5      Inaccurate:     	White=2     	---        OK:         	White=11    	Black=6      Best:        	White=1     	---} 1/2-1/2

[Event "German Bundesliga 2024-25"]
[Site "Germany"]
[Date "2024.12.01"]
[Round "4.1"]
[White "Livaic, Leon"]
[Black "Christiansen, Johan-Sebastian"]
[Result "1/2-1/2"]
[Annotator "TA"]
[ECO "E04"]
[WhiteElo "2557"]
[BlackElo "2661"]
[PlyCount "62"]
[EventDate "2024.09.27"]
[EventType "team-tourn"]
[EventCountry "GER"]
[SourceTitle "playchess.com"]
[Source "ChessBase"]
[SourceQuality "1"]
[WhiteTeam "Heimbach-Weis-Neuwied"]
[BlackTeam "St. Pauli"]
[TimeControl "40/5400+30:1800+30"]

{[%evp 13,62,43,43,27,73,63,53,62,81,57,48,57,56,70,68,74,67,58,113,44,56,40,60,0,70,27,57,56,65,0,0,0,0,0,0,0,4,0,0,0,8,6,8,0,1,0,0,0,22,0,0]} 1. d4 {[%emt 0:00:03]} Nf6 {[%emt 0:00:25]} 2. c4 {[%emt 0:00:06]} e6 {[%emt 0:00:19]} 3. Nf3 {[%emt 0:00:16]} d5 {[%emt 0:00:06]} 4. g3 {[%emt 0:00:22]} dxc4 {[%emt 0:03:16]} 5. Bg2 {[%emt 0:00:06]} Nbd7 {[%emt 0:02:58]} 6. O-O {[%emt 0:03:18]} c6 {[%emt 0:00:06]} 7. a4 {[%emt 0:01:49]} a5 {[%emt 0:00:07]} 8. Qc2 {[%emt 0:02:21]} b5 {[%emt 0:03:53]} (8... Nd5 $11) 9. Ne5 $16 {[%emt 0:02:24]} Nxe5 {[%emt 0:00:51]} 10. dxe5 {[%emt 0:00:04] White is slightly better.} Nd5 {[%emt 0:00:13] [#]} 11. axb5 $1 {[%emt 0:01:38]} cxb5 {[%emt 0:00:11]} 12. Nc3 {[%emt 0:00:15]} Qb6 {[%emt 0:05:10]} 13. Nxd5 {[%emt 0:00:24]} exd5 {[%emt 0:00:06]} 14. Bxd5 {[%emt 0:00:16]} Ra7 {[%emt 0:10:26][%cal Ba8a7,Ba7c7,Bc7e7,Be7e5][%mdl 32]} 15. Bxc4 {[%emt 0:21:02]} Bc5 {[%emt 0:23:46] [#] Wards off Be3} (15... bxc4 $14 16. Be3 Bc5 17. Qxc4 Bxe3 (17... Rc7 18. Rac1 $16) 18. Qxc8+ Qd8 19. Qxd8+ Kxd8 20. fxe3 Ke7) 16. Bd5 {[%emt 0:23:01]} (16. b4 $1 $16 {[%cal Rb4c5]} Bxf2+ 17. Rxf2 bxc4 18. Qa4+ (18. Qxc4 O-O $11) 18... Bd7 19. Qa3) 16... O-O $14 {[%emt 0:03:33]} 17. Kg2 {[%emt 0:13:06] Prevents Bh3+} Rc7 {[%emt 0:07:29][%cal Oc5f2]} 18. Qd3 {[%emt 0:01:48]} ({Better is} 18. Bf4 $14) 18... b4 {[%emt 0:02:34]} (18... h6 $11) 19. Qf3 {[%emt 0:04:03] White is more active.} Re7 {[%emt 0:06:34]} 20. e4 {[%emt 0:03:36]} Rxe5 {[%emt 0:02:45]} 21. Be3 {[%emt 0:05:51]} (21. Bf4 $14 Re7 22. Rfc1) 21... Bxe3 $11 {[%emt 0:09:15] The position is equal.} 22. Qxe3 {[%emt 0:00:07]} Qxe3 {[%emt 0:02:00]} 23. fxe3 {[%emt 0:00:05][%cal Og2f3]} Be6 {[%emt 0:00:09]} 24. Rxa5 {[%emt 0:01:33]} Bxd5 {[%emt 0:00:35]} 25. exd5 {[%emt 0:00:24]} Rxe3 {[%emt 0:00:09][%mdl 4096] Endgame. KRR-KRR} 26. Rf3 {[%emt 0:02:06]} Re2+ {[%emt 0:03:47]} 27. Rf2 {[%emt 0:00:08]} Re5 {[%emt 0:01:26]} 28. Rb5 {[%emt 0:00:27][%cal Of2d2]} h5 {[%emt 0:03:22]} 29. Rd2 {[%emt 0:00:18]} Rd8 $1 {[%emt 0:00:06]} 30. Kf3 {[%emt 0:00:25]} Kh7 {[%emt 0:00:45]} 31. h4 {[%emt 0:00:26]} f6 {[%emt 0:00:26] Weighted Error Value: White=0.17 (very precise) /Black=0.14 (very precise) .  Mistake:       	White=3     	Black=3      Inaccurate:     	White=1     	Black=1      OK:         	White=4     	Black=8      Best:        	White=4     	Black=3      Strong:       	White=1     	Black=1} 1/2-1/2

[Event "German Bundesliga 2024-25"]
[Site "Germany"]
[Date "2024.12.01"]
[Round "4.2"]
[White "Bjerre, Jonas Buhl"]
[Black "Polak, Tomas"]
[Result "1-0"]
[Annotator "TA"]
[ECO "B13"]
[WhiteElo "2654"]
[BlackElo "2470"]
[PlyCount "81"]
[EventDate "2024.09.27"]
[EventType "team-tourn"]
[EventCountry "GER"]
[SourceTitle "playchess.com"]
[Source "ChessBase"]
[SourceQuality "1"]
[WhiteTeam "St. Pauli"]
[BlackTeam "Heimbach-Weis-Neuwied"]
[TimeControl "40/5400+30:1800+30"]

{[%evp 24,81,28,26,29,29,39,39,32,39,39,39,32,5,17,10,9,0,0,0,45,0,0,0,0,0,10,0,45,37,21,34,61,0,40,0,48,65,75,44,39,48,48,52,49,41,36,0,0,0,368,398,397,408,359,373,481,473,6713,6155]} 1. e4 {[%emt 0:00:03]} c6 {[%emt 0:00:09]} 2. d4 {[%emt 0:00:23]} d5 {[%emt 0:00:06]} 3. exd5 {[%emt 0:00:25]} cxd5 {[%emt 0:00:08]} 4. Bd3 {[%emt 0:00:38]} Nc6 {[%emt 0:00:37]} 5. c3 {[%emt 0:00:09]} Nf6 {[%emt 0:01:54]} 6. Bf4 {[%emt 0:01:29]} Bg4 {[%emt 0:00:32]} 7. Nf3 {[%emt 0:00:41]} Qd7 {[%emt 0:11:43]} 8. Nbd2 {[%emt 0:06:38]} e6 {[%emt 0:02:57]} 9. Qb3 {[%emt 0:10:04]} Bxf3 {[%emt 0:00:49]} 10. Nxf3 {[%emt 0:00:18]} Bd6 {[%emt 0:00:43]} 11. Bxd6 {[%emt 0:11:39]} Qxd6 {[%emt 0:01:35]} 12. O-O {[%emt 0:00:48]} O-O {[%emt 0:00:06]} 13. Rfe1 {[%emt 0:01:52]} Qc7 {[%emt 0:00:49]} 14. Qc2 {[%emt 0:02:11]} g6 {[%emt 0:05:03]} 15. Re2 {[%emt 0:09:16]} a6 {[%emt 0:11:52] White is slightly better.} 16. Qd2 {[%emt 0:08:31]} Kg7 {[%emt 0:01:45]} 17. Rae1 {[%emt 0:04:43]} Rae8 {[%emt 0:07:12]} 18. Ne5 {[%emt 0:04:49]} Nxe5 {[%emt 0:07:37]} 19. dxe5 {[%emt 0:00:15]} Nd7 {[%emt 0:00:14]} 20. Re3 {[%emt 0:01:49][%cal Be2e3,Be3h3,Bh3g3,Bg3g5][%mdl 32]} (20. Qf4 {feels hotter.} h5 21. Re3 Rc8 22. Be2) 20... Rh8 {[%emt 0:06:37]} 21. h4 {[%emt 0:01:41][%cal Oh4h5]} Qd8 {[%emt 0:07:26]} 22. Rh3 {[%emt 0:07:50]} h5 {[%emt 0:00:22]} 23. Qf4 {[%emt 0:00:15]} Qe7 {[%emt 0:01:01]} 24. Rg3 {[%emt 0:01:50]} Rh7 {[%emt 0:05:43]} 25. Ree3 {[%emt 0:02:08]} Kh8 {[%emt 0:02:16]} 26. Rg5 {[%emt 0:02:06]} Rg8 {[%emt 0:03:33]} 27. Rh3 {[%emt 0:03:47]} Rgg7 {[%emt 0:03:20]} 28. Be2 {[%emt 0:04:34] White is more active.} ({White should play} 28. c4 $14) 28... Rg8 {[%emt 0:04:14]} 29. Bd3 {[%emt 0:02:27]} Rgg7 {[%emt 0:01:18]} 30. c4 {[%emt 0:01:18]} Nb6 {[%emt 0:03:05]} 31. b3 {[%emt 0:04:29]} dxc4 {[%emt 0:01:04]} 32. bxc4 {[%emt 0:00:19]} Nd7 {[%emt 0:00:41]} 33. Bc2 {[%emt 0:01:29]} Nc5 {[%emt 0:02:02] Wards off Rb3} 34. Kh2 {[%emt 0:01:34]} b6 {[%emt 0:02:18]} 35. g4 {[%emt 0:00:49]} hxg4 {[%emt 0:04:05]} 36. Qxg4 {[%emt 0:00:02] [#] h5 would now be deadly.} (36. Rxg4 Rh5 $15) 36... f5 $2 {[%emt 0:01:07][%mdl 8192]} (36... Qc7 $11) 37. exf6 $18 {[%emt 0:00:49]} Qxf6 {[%emt 0:00:02]} 38. Rf3 {[%emt 0:01:04]} (38. Bxg6 Qxf2+ 39. Kh1 (39. Qg2 Qf4+ 40. Qg3 Qxg3+ 41. Rgxg3 Rh6 $11) 39... Qf1+ 40. Kh2 Qf2+ 41. Qg2 Qf4+ 42. Qg3 Qxg3+ 43. Rgxg3 (43. Kxg3 Rh6 $11) 43... Rh6 $11) 38... Qe7 {[%emt 0:00:22]} 39. Bxg6 {[%emt 0:01:12]} (39. Rxg6 Qxh4+ 40. Qxh4 Rxh4+ 41. Rh3 Rxh3+ 42. Kxh3 Rxg6 43. Bxg6 Kg7 $17) 39... Rh6 {[%emt 0:01:50]} 40. h5 {[%emt 0:03:18]} Ne4 {[%emt 0:01:27]} (40... Nd7 $142 41. Qf4 e5) 41. Qxe4 {[%emt 0:04:38] Weighted Error Value: White=0.10 (very precise) /Black=0.34.  Loses game:     	---       	Black=1      Mistake:       	White=1     	Black=1      Inaccurate:     	White=4     	Black=4      OK:         	White=9     	Black=12     Best:        	White=2     	---} ({And not} 41. Re5 Nf6 42. Rxf6 Qxf6 43. Rxe6 Qxf2+ (43... Rgxg6 $2 {is the wrong capture.} 44. Rxf6 Rxf6 45. Kg3 $16) 44. Kh3 Rg8 $11 (44... Qxa2 45. Re8+ Rg8 46. Qd4#)) 1-0